fUSD/lending_fUSD_20260605
["ID","MTS","AMOUNT","RATE_DAILY","PERIOD"]
[424199623,1780648247000,-500.0,0.00011448,2]
[424199622,1780648247000,-838.04693561,0.00015,2]
[424199624,1780648247000,-5671.61503748,0.00015,2]
[424199628,1780648247000,-370.75466814,0.00011722,2]
[424199625,1780648247000,-1089.05545827,0.00015,2]
[424199627,1780648247000,-1241.49744497,0.00015,2]
[424199629,1780648247000,-156.55958186,0.000149,2]
[424199630,1780648247000,-20.25524258,0.000149,2]
[424199626,1780648247000,-64754.79617057,0.00015,2]
[424199631,1780648248000,-146.30176321,0.000149,2]
[424199634,1780648248000,-107624.78189298,0.00015,2]
[424199635,1780648248000,-939.00521903,0.00015,2]
[424199636,1780648248000,-3594.75703695,0.00015,2]
[424199632,1780648248000,-90672.97780503,0.00015,2]
[424199637,1780648248000,-48155.70595638,0.00015,2]
[424199633,1780648248000,-79341.89934589,0.00015,2]
[424199638,1780648253000,229.0,0.00011291,2]
[424199639,1780648288000,614.91766187,9.829e-05,2]
[424199640,1780648288000,843.91766187,9.829e-05,2]
[424199641,1780648314000,-475.89431076,9.829e-05,2]
[424199642,1780648315000,-52.6050655,9.829e-05,2]
[424199643,1780648329000,214.1157247,9.999e-05,2]
[424199644,1780648330000,186.18115721,0.00012329,2]
[424199645,1780648347000,-150.0,0.00013287,2]
[424199647,1780648347000,-372.48078518,0.00013698,2]
[424199648,1780648347000,-4016.87155295,0.00013698,2]
[424199646,1780648347000,-843.91766187,0.00013599,2]
[424199649,1780648807000,-41.97893646,0.00038776,120]
[424199674,1780648808000,-500.0,0.00038776,120]
[424199670,1780648808000,-558.47,0.00038776,120]
[424199671,1780648808000,-500.0,0.00038776,120]
[424199668,1780648808000,-500.0,0.00038776,120]
[424199666,1780648808000,-500.0,0.00038776,120]
[424199669,1780648808000,-558.47,0.00038776,120]
[424199667,1780648808000,-558.47,0.00038776,120]
[424199665,1780648808000,-500.0,0.00038776,120]
[424199664,1780648808000,-558.47,0.00038776,120]
[424199662,1780648808000,-500.0,0.00038776,120]
[424199660,1780648808000,-500.0,0.00038776,120]
[424199659,1780648808000,-558.47,0.00038776,120]
[424199673,1780648808000,-558.56654766,0.00038776,120]
[424199661,1780648808000,-558.47,0.00038776,120]
[424199658,1780648808000,-558.47,0.00038776,120]
[424199657,1780648808000,-558.47,0.00038776,120]
[424199656,1780648808000,-558.47,0.00038776,120]
[424199655,1780648808000,-558.47,0.00038776,120]
[424199654,1780648808000,-558.47,0.00038776,120]
[424199653,1780648808000,-558.47,0.00038776,120]
[424199652,1780648808000,-506.54266051,0.00038776,120]
[424199651,1780648808000,-558.47,0.00038776,120]
[424199650,1780648808000,-504.8452414,0.00038776,120]
[424199663,1780648808000,-500.0,0.00038776,120]
[424199672,1780648808000,-1430.75,0.00038776,120]
[424199692,1780648808000,-1430.75,0.00038776,120]
[424199677,1780648808000,-500.0,0.00038776,120]
[424199700,1780648808000,-500.0,0.00038776,120]
[424199701,1780648808000,-293.71779834,0.00038776,120]
[424199699,1780648808000,-583.3,0.00038776,120]
[424199697,1780648808000,-500.0,0.00038776,120]
[424199698,1780648808000,-1430.75,0.00038776,120]
[424199696,1780648808000,-500.0,0.00038776,120]
[424199695,1780648808000,-1430.75,0.00038776,120]
[424199694,1780648808000,-500.0,0.00038776,120]
[424199693,1780648808000,-500.0,0.00038776,120]
[424199687,1780648808000,-500.0,0.00038776,120]
[424199690,1780648808000,-500.0,0.00038776,120]
[424199689,1780648808000,-500.0,0.00038776,120]
[424199675,1780648808000,-1430.75,0.00038776,120]
[424199688,1780648808000,-1430.75,0.00038776,120]
[424199676,1780648808000,-500.0,0.00038776,120]
[424199678,1780648808000,-1430.75,0.00038776,120]
[424199691,1780648808000,-500.0,0.00038776,120]
[424199680,1780648808000,-500.0,0.00038776,120]
[424199681,1780648808000,-500.0,0.00038776,120]
[424199679,1780648808000,-519.59966378,0.00038776,120]
[424199685,1780648808000,-584.80915185,0.00038776,120]
[424199684,1780648808000,-1430.75,0.00038776,120]
[424199682,1780648808000,-1430.75,0.00038776,120]
[424199686,1780648808000,-1430.75,0.00038776,120]
[424199683,1780648808000,-500.0,0.00038776,120]
[424199704,1780649235000,-691.97456119,0.00012236,2]
[424199707,1780649368000,-356.46809845,0.00012236,2]
[424199706,1780649368000,-150.0,0.00012201,2]
[424199708,1780649413000,661.80874092,0.00012,3]
[424199719,1780649432000,-250.0,0.00012262,2]
[424199717,1780649432000,-741.54125039,0.00012236,2]
[424199718,1780649432000,-210.01608997,0.00012236,2]
[424199716,1780649432000,-200.0,0.00012176,2]
[424199724,1780649432000,-99.21558212,0.00012338,2]
[424199720,1780649432000,-164.84,0.00012288,2]
[424199722,1780649432000,-67.92184038,0.00012329,2]
[424199723,1780649432000,-150.0,0.00012329,7]
[424199721,1780649432000,-187.87300947,0.00012329,2]
[424199766,1780649439000,-500.0,0.00012725,2]
[424199767,1780649439000,-183.90172854,0.00012725,2]
[424199771,1780649439000,-423.99476761,0.00012725,2]
[424199772,1780649439000,-353.55601898,0.00012725,2]
[424199768,1780649439000,-500.0,0.00012725,2]
[424199769,1780649439000,-335.69593335,0.00012725,2]
[424199770,1780649439000,-172.16242462,0.00012725,2]
[424199775,1780649439000,-166.66,0.00012865,2]
[424199777,1780649439000,-2331.88519055,0.00012899,2]
[424199774,1780649439000,-402.21,0.00012761,2]
[424199773,1780649439000,-2078.22,0.00012726,2]
[424199785,1780649439000,-299.99,0.00013298,2]
[424199776,1780649439000,-150.0,0.00012898,2]
[424199780,1780649439000,-255.79484985,0.00012972,2]
[424199790,1780649439000,-9999.99,0.00013411,2]
[424199779,1780649439000,-150.0,0.00012945,7]
[424199781,1780649439000,-2078.22,0.00013044,2]
[424199782,1780649439000,-166.66,0.00013289,2]
[424199783,1780649439000,-9043.12,0.00013298,2]
[424199778,1780649439000,-1716.70039376,0.00012899,2]
[424199764,1780649439000,-150.52165906,0.00012575,2]
[424199748,1780649439000,-500.0,0.00012489,2]
[424199763,1780649439000,-150.0,0.00012575,7]
[424199743,1780649439000,-150.78441788,0.00012338,2]
[424199745,1780649439000,-1200.0,0.00012488,2]
[424199744,1780649439000,-150.0,0.00012346,2]
[424199747,1780649439000,-300.0,0.00012488,2]
[424199786,1780649439000,-150.0,0.00013315,7]
[424199746,1780649439000,-1200.0,0.00012488,2]
[424199750,1780649439000,-500.0,0.00012489,2]
[424199749,1780649439000,-500.0,0.00012489,2]
[424199754,1780649439000,-67.47696788,0.0001249,2]
[424199765,1780649439000,-201.83241452,0.00012575,2]
[424199751,1780649439000,-500.0,0.00012489,2]
[424199752,1780649439000,-500.0,0.00012489,2]
[424199756,1780649439000,-1004.32303212,0.0001249,2]
[424199759,1780649439000,-150.99,0.00012523,2]
[424199755,1780649439000,-625.0,0.0001249,2]
[424199757,1780649439000,-2267.99,0.00012523,2]
[424199761,1780649439000,-1927.85,0.00012523,2]
[424199762,1780649439000,-160.0,0.00012543,2]
[424199758,1780649439000,-19999.99,0.00012523,2]
[424199760,1780649439000,-999.99,0.00012523,2]
[424199753,1780649439000,-336.94050123,0.00012489,2]
[424199787,1780649439000,-2078.22,0.00013362,2]
[424199795,1780649439000,-500.0,0.00013412,2]
[424199788,1780649439000,-1000.0,0.0001341,2]
[424199827,1780649439000,-1013.97488959,0.00013598,3]
[424199817,1780649439000,-150.0,0.00013588,2]
[424199816,1780649439000,-150.0,0.00013569,2]
[424199821,1780649439000,-1000.0,0.00013598,2]
[424199818,1780649439000,-181.96413657,0.00013589,2]
[424199784,1780649439000,-1688.8,0.00013298,2]
[424199826,1780649439000,-1013.97488959,0.00013598,3]
[424199823,1780649439000,-250.0,0.00013598,2]
[424199819,1780649439000,-181.96413657,0.00013589,2]
[424199824,1780649439000,-250.0,0.00013598,2]
[424199822,1780649439000,-1000.0,0.00013598,2]
[424199825,1780649439000,-1013.97488959,0.00013598,3]
[424199828,1780649439000,-1013.97488959,0.00013598,3]
[424199833,1780649439000,-7667.64145747,0.00013599,2]
[424199829,1780649439000,-1013.97488959,0.00013598,3]
[424199831,1780649439000,-500.0,0.00013599,2]
[424199832,1780649439000,-219198.79364386,0.00013599,2]
[424199834,1780649439000,-475.89431076,0.00013599,2]
[424199830,1780649439000,-1013.97488959,0.00013598,3]
[424199813,1780649439000,-150.0,0.00013528,2]
[424199812,1780649439000,-5600.0,0.000135,4]
[424199820,1780649439000,-150.0,0.00013598,2]
[424199808,1780649439000,-150.0,0.00013488,2]
[424199789,1780649439000,-4999.99,0.00013411,2]
[424199809,1780649439000,-150.0,0.00013488,2]
[424199792,1780649439000,-9999.99,0.00013411,2]
[424199799,1780649439000,-150.0,0.00013488,2]
[424199797,1780649439000,-250.0,0.0001346,2]
[424199794,1780649439000,-336.16585107,0.00013412,2]
[424199793,1780649439000,-1000.0,0.00013412,2]
[424199800,1780649439000,-150.0,0.00013488,2]
[424199796,1780649439000,-64103.71,0.00013413,2]
[424199798,1780649439000,-500.0,0.0001346,2]
[424199791,1780649439000,-7603.45,0.00013411,2]
[424199802,1780649439000,-150.0,0.00013488,2]
[424199801,1780649439000,-150.0,0.00013488,2]
[424199810,1780649439000,-233.87790749,0.00013499,2]
[424199815,1780649439000,-150.0,0.00013548,2]
[424199807,1780649439000,-203.7220427,0.00013488,2]
[424199811,1780649439000,-1721.1942377,0.00013499,2]
[424199804,1780649439000,-150.0,0.00013488,2]
[424199805,1780649439000,-150.0,0.00013488,2]
[424199806,1780649439000,-150.0,0.00013488,2]
[424199814,1780649439000,-150.0,0.00013548,2]
[424199803,1780649439000,-150.0,0.00013488,2]
[424199836,1780649441000,-571914.20045714,0.00013599,2]
[424199835,1780649441000,-211.14205758,0.00013499,2]
[424199840,1780649441000,-62587.70852238,0.00013599,2]
[424199839,1780649441000,-164.9252952,0.00013599,2]
[424199899,1780649444000,-531.86218939,0.00013599,2]
[424199895,1780649444000,-19401.05599919,0.00013599,2]
[424199880,1780649444000,-2851.5863955,0.00013599,2]
[424199878,1780649444000,-10493.0784,0.00013599,2]
[424199874,1780649444000,-317.23126945,0.00013599,2]
[424199876,1780649444000,-1289.65724805,0.00013599,2]
[424199872,1780649444000,-704.02677138,0.00013599,2]
[424199882,1780649444000,-274.23940527,0.00013599,2]
[424199942,1780649446000,-302.0,0.00013599,2]
[424199941,1780649446000,-1394.29459015,0.00013599,2]
[424199946,1780649448000,264.58,0.00030136,120]
[424199947,1780649453000,152.0,0.00011096,7]
[424199948,1780649454000,152.0,0.00011096,7]
[424199949,1780649455000,152.0,0.00011096,7]
[424199950,1780649456000,152.0,0.00011096,7]
[424199952,1780649456000,264.58,0.00030136,120]
[424199951,1780649456000,152.0,0.00011096,7]
[424199953,1780649457000,152.0,0.000111,7]
[424199954,1780649458000,152.0,0.000111,7]
[424199955,1780649458000,152.0,0.000111,7]
[424199956,1780649459000,152.0,0.000111,7]
[424199959,1780649460000,152.0,0.00011103,7]
[424199958,1780649460000,152.0,0.00011103,7]
[424199957,1780649460000,2000.0,0.0003013,120]
[424199960,1780649461000,152.0,0.00022159,30]
[424199961,1780649462000,152.0,0.00022159,30]
[424199962,1780649462000,152.0,0.00022183,30]
[424199963,1780649463000,152.0,0.00022183,30]
[424199964,1780649472000,264.58,0.00030136,120]
[424199965,1780649481000,264.58,0.00030136,120]
[424199966,1780649482000,2000.0,0.0003013,120]
[424199967,1780649495000,275.13,0.00030077,120]
[424199968,1780649504000,2000.0,0.0003013,120]
[424199969,1780649520000,152.0,0.000111,7]
[424199970,1780649521000,152.0,0.00022183,30]
[424199971,1780649525000,2000.0,0.0003013,120]
[424199972,1780649546000,2000.0,0.0003013,120]
[424199973,1780649567000,2000.0,0.0003013,120]
[424199975,1780649588000,2000.0,0.0003013,120]
[424199976,1780649597000,512.626998,0.00029381,120]
[424199977,1780649609000,2000.0,0.0003013,120]
[424199978,1780649670000,161.01,0.00028767,120]
[424199979,1780649731000,-150.0,0.00011625,2]
[424199982,1780649785000,-1449.03,0.00011931,2]
[424199983,1780649792000,2000.0,0.00030077,120]
[424199985,1780649793000,2000.0,0.00030077,120]
[424199984,1780649793000,2000.0,0.00030077,120]
[424199987,1780649793000,2000.0,0.00030077,120]
[424199986,1780649793000,2000.0,0.00030077,120]
[424199988,1780649793000,2000.0,0.00030077,120]
[424199991,1780649794000,1499.29,0.00030077,120]
[424199990,1780649794000,2000.0,0.00030077,120]
[424199989,1780649794000,2000.0,0.00030077,120]
[424199992,1780649814000,152.0,0.00011098,7]
[424199993,1780649815000,152.0,0.00011098,7]
[424199994,1780649815000,152.0,0.00022183,30]
[424199995,1780649839000,-200.78311102,0.0001197,2]
[424199996,1780649892000,-150.0,0.00011852,2]
[424199997,1780649945000,-250.0,0.00011919,2]
[424199998,1780649984000,544.78,0.00030082,120]
[424199999,1780649998000,-152.0,0.00011985,2]
[424200000,1780650052000,-152.0,0.00011985,2]
[424200001,1780650105000,-500.0,0.00011984,2]
[424200002,1780650106000,1944.0,0.00023,30]
[424200003,1780650126000,5661407.99816256,0.00030137,120]
[424200004,1780650159000,-150.0,0.00011703,2]
[424200005,1780650212000,-500.0,0.00011703,2]
[424200006,1780650342000,443.41185641,0.00012,3]
[424200008,1780650407000,195.79224829,0.00012,3]
[424200009,1780650524000,253.07,0.00011081,7]
[424200016,1780650552000,-459.08343022,0.00011702,2]
[424200010,1780650552000,-495.71183153,0.00010937,2]
[424200011,1780650552000,-200.0,0.00011081,2]
[424200013,1780650552000,-1036.553628,0.00011544,2]
[424200015,1780650552000,-831.28,0.00011656,2]
[424200012,1780650552000,-591.95061384,0.00011345,2]
[424200014,1780650552000,-724.51,0.00011602,2]
[424200017,1780650552000,-500.0,0.00011702,2]
[424200020,1780650552000,-500.0,0.00011702,2]
[424200019,1780650552000,-500.0,0.00011702,2]
[424200022,1780650552000,-500.0,0.00011702,2]
[424200021,1780650552000,-500.0,0.00011702,2]
[424200024,1780650552000,-218.57578475,0.00011702,2]
[424200023,1780650552000,-500.0,0.00011702,2]
[424200026,1780650552000,-941.94949177,0.00011738,2]
[424200025,1780650552000,-164.85,0.00011703,2]
[424200018,1780650552000,-500.0,0.00011702,2]
[424200036,1780650631000,-150.0,0.00011946,2]
[424200035,1780650631000,-3773.12,0.00011766,2]
[424200034,1780650631000,-597.48921329,0.00011765,2]
[424200027,1780650631000,-1058.05050823,0.00011738,2]
[424200028,1780650631000,-250.0,0.00011751,2]
[424200029,1780650631000,-150.78441788,0.0001176,2]
[424200037,1780650631000,-378.49379666,0.00011947,2]
[424200030,1780650631000,-370.07754246,0.00011764,2]
[424200033,1780650631000,-300.0,0.00011765,2]
[424200040,1780650631000,-293.03651548,0.00011985,2]
[424200031,1780650631000,-829.92245754,0.00011764,2]
[424200038,1780650631000,-278.52586619,0.00011947,2]
[424200039,1780650631000,-174.26033715,0.00011947,2]
[424200045,1780650631000,-184.58100627,0.00011985,2]
[424200043,1780650631000,-390.84899373,0.00011985,2]
[424200042,1780650631000,-109.15100627,0.00011985,2]
[424200044,1780650631000,-500.0,0.00011985,2]
[424200041,1780650631000,-206.96348452,0.00011985,2]
[424200032,1780650631000,-1200.0,0.00011765,2]
[424200073,1780650637000,-299.99,0.00012145,2]
[424200074,1780650637000,-150.99,0.00012145,2]
[424200068,1780650637000,-1363.47,0.00012,2]
[424200067,1780650637000,-7661.72,0.00012,2]
[424200066,1780650637000,-1221.64791658,0.00012,2]
[424200065,1780650637000,-3778.35208342,0.00012,2]
[424200064,1780650637000,-218.59308156,0.00011985,2]
[424200062,1780650637000,-500.0,0.00011985,2]
[424200059,1780650637000,-296.79633732,0.00011984,2]
[424200069,1780650637000,-500.0,0.00012136,2]
[424200063,1780650637000,-382.34807354,0.00011985,2]
[424200058,1780650637000,-418.2424493,0.00011984,2]
[424200057,1780650637000,-234.98715335,0.00011984,2]
[424200056,1780650637000,-500.0,0.00011984,2]
[424200060,1780650637000,-315.41899373,0.00011985,2]
[424200071,1780650637000,-9999.99,0.00012145,2]
[424200061,1780650637000,-500.0,0.00011985,2]
[424200070,1780650637000,-1185.40830412,0.00012145,2]
[424200072,1780650637000,-9999.99,0.00012145,2]
[424200089,1780650637000,-1708.72965479,0.00012575,7]
[424200086,1780650637000,-5700.0,0.000125,4]
[424200087,1780650637000,-831.28,0.0001253,2]
[424200085,1780650637000,-1580.57953066,0.00012398,2]
[424200083,1780650637000,-544.78,0.00012329,2]
[424200084,1780650637000,-1708.72965479,0.00012329,7]
[424200088,1780650637000,-227.1152959,0.00012575,7]
[424200081,1780650637000,-831.28,0.00012239,2]
[424200079,1780650637000,-500.0,0.00012225,3]
[424200082,1780650637000,-160.0,0.00012267,2]
[424200080,1780650637000,-200.0,0.00012225,2]
[424200077,1780650637000,-152.0,0.00012154,2]
[424200075,1780650637000,-999.99,0.00012145,2]
[424200078,1780650637000,-166.68,0.00012188,2]
[424200076,1780650637000,-24999.99,0.00012145,2]
[424200106,1780650638000,-33256.6326,0.00013098,2]
[424200108,1780650638000,-153.47690991,0.0001313,2]
[424200107,1780650638000,-4000.0,0.00013098,2]
[424200110,1780650638000,-150.0,0.00013198,2]
[424200112,1780650638000,-2910.0058,0.00013211,2]
[424200111,1780650638000,-2000.0,0.00013205,2]
[424200109,1780650638000,-200.46677784,0.00013192,2]
[424200113,1780650638000,-250.0,0.00013211,2]
[424200116,1780650638000,-181.9641366,0.00013301,2]
[424200115,1780650638000,-1506.04495797,0.00013215,2]
[424200105,1780650638000,-2000.0,0.00013098,2]
[424200114,1780650638000,-1000.0,0.00013211,2]
[424200104,1780650638000,-255.0,0.00013022,2]
[424200117,1780650638000,-340.67294389,0.00013315,7]
[424200097,1780650638000,-28900.0,0.000129,4]
[424200101,1780650638000,-1708.72965479,0.00012945,7]
[424200102,1780650638000,-150.0,0.00012986,2]
[424200103,1780650638000,-2500.0,0.00012998,2]
[424200099,1780650638000,-1192.0,0.00012919,2]
[424200098,1780650638000,-250.0,0.00012912,2]
[424200095,1780650638000,-831.28,0.00012822,2]
[424200093,1780650638000,-356.87751008,0.00012775,2]
[424200094,1780650638000,-23100.0,0.000128,4]
[424200091,1780650638000,-11500.0,0.000126,4]
[424200090,1780650638000,-153.47690991,0.00012575,2]
[424200092,1780650638000,-17300.0,0.000127,4]
[424200100,1780650638000,-1680.0,0.00012941,2]
[424200126,1780650638000,-150.24681016,0.00013488,2]
[424200096,1780650638000,-500.0,0.00012822,2]
[424200119,1780650638000,-174.39803428,0.00013411,2]
[424200118,1780650638000,-1708.72965479,0.00013315,7]
[424200157,1780650638000,-12454.36099173,0.00013538,2]
[424200155,1780650638000,-2737.60570344,0.00013538,2]
[424200161,1780650638000,-16723.1234844,0.00013538,2]
[424200149,1780650638000,-154.7275995,0.00013538,2]
[424200147,1780650638000,-203.55691112,0.00013533,2]
[424200151,1780650638000,-77353.08021034,0.00013538,2]
[424200145,1780650638000,-1000.0,0.00013533,2]
[424200143,1780650638000,-150.0,0.00013532,2]
[424200135,1780650638000,-203.55691112,0.00013488,2]
[424200134,1780650638000,-150.0,0.00013488,2]
[424200132,1780650638000,-150.0,0.00013488,2]
[424200133,1780650638000,-150.0,0.00013488,2]
[424200165,1780650638000,-299.99,0.00013538,2]
[424200130,1780650638000,-150.0,0.00013488,2]
[424200129,1780650638000,-150.0,0.00013488,2]
[424200128,1780650638000,-150.0,0.00013488,2]
[424200139,1780650638000,-203.55691112,0.00013503,2]
[424200141,1780650638000,-203.55691112,0.00013518,2]
[424200137,1780650638000,-150.0,0.00013488,2]
[424200127,1780650638000,-150.0,0.00013488,2]
[424200125,1780650638000,-200.46677783,0.00013477,2]
[424200122,1780650638000,-164.962334,0.00013425,2]
[424200124,1780650638000,-1506.04495795,0.00013456,2]
[424200121,1780650638000,-275.112495,0.00013424,2]
[424200123,1780650638000,-202.414943,0.00013425,2]
[424200131,1780650638000,-150.32951388,0.00013488,2]
[424200120,1780650638000,-940.14567061,0.00013411,2]
[424200269,1780650639000,-1001.63128033,0.00013538,2]
[424200270,1780650639000,-6700.0,0.00013538,2]
[424200268,1780650639000,-163.94481117,0.00013533,2]
[424200299,1780650640000,-452.0,0.00013653,2]
[424200300,1780650640000,-203.55691112,0.00013654,2]
[424200305,1780650640000,-203.55691112,0.00013684,2]
[424200307,1780650640000,-1506.04495795,0.00013696,2]
[424200298,1780650640000,-446.0,0.00013653,2]
[424200308,1780650640000,-500.0,0.00013698,2]
[424200303,1780650640000,-150.0,0.00013683,2]
[424200304,1780650640000,-150.0,0.00013683,2]
[424200301,1780650640000,-150.0,0.00013664,2]
[424200302,1780650640000,-203.55691112,0.00013669,2]
[424200312,1780650640000,-500.0,0.00013698,2]
[424200319,1780650640000,-500.0,0.00013698,2]
[424200309,1780650640000,-500.0,0.00013698,2]
[424200320,1780650640000,-500.0,0.00013698,2]
[424200321,1780650640000,-500.0,0.00013698,2]
[424200317,1780650640000,-500.0,0.00013698,2]
[424200313,1780650640000,-500.0,0.00013698,2]
[424200318,1780650640000,-500.0,0.00013698,2]
[424200311,1780650640000,-500.0,0.00013698,2]
[424200315,1780650640000,-500.0,0.00013698,2]
[424200314,1780650640000,-500.0,0.00013698,2]
[424200297,1780650640000,-250.61223586,0.00013639,2]
[424200310,1780650640000,-500.0,0.00013698,2]
[424200293,1780650640000,-447.0,0.0001362,2]
[424200275,1780650640000,-150.0,0.00013553,2]
[424200294,1780650640000,-455.0,0.0001362,2]
[424200271,1780650640000,-217496.70147556,0.00013538,2]
[424200272,1780650640000,-9088.135699,0.00013538,2]
[424200273,1780650640000,-203.55691112,0.00013548,2]
[424200277,1780650640000,-150.0,0.00013576,2]
[424200283,1780650640000,-459.0,0.00013599,2]
[424200282,1780650640000,-451.0,0.00013599,2]
[424200284,1780650640000,-150.0,0.00013603,2]
[424200276,1780650640000,-203.55691112,0.00013563,2]
[424200274,1780650640000,-150.0,0.00013553,2]
[424200279,1780650640000,-203.55691112,0.00013594,2]
[424200316,1780650640000,-500.0,0.00013698,2]
[424200280,1780650640000,-151.0,0.00013596,2]
[424200278,1780650640000,-203.55691112,0.00013578,2]
[424200281,1780650640000,-446.0,0.00013599,2]
[424200286,1780650640000,-443.41185641,0.00013606,2]
[424200296,1780650640000,-203.55691112,0.00013639,2]
[424200287,1780650640000,-441.0,0.00013607,2]
[424200288,1780650640000,-455.0,0.00013607,2]
[424200285,1780650640000,-2516.16998946,0.00013606,2]
[424200290,1780650640000,-150.0,0.00013618,2]
[424200289,1780650640000,-203.55691112,0.00013609,2]
[424200295,1780650640000,-203.55691112,0.00013624,2]
[424200292,1780650640000,-150.0,0.0001362,2]
[424200291,1780650640000,-150.0,0.00013618,2]
[424200322,1780650640000,-500.0,0.00013698,2]
[424200306,1780650640000,-153.47690991,0.00013685,2]
[424200324,1780650640000,-500.0,0.00013698,2]
[424200358,1780650640000,-386.82400011,0.00013698,2]
[424200347,1780650640000,-500.0,0.00013698,2]
[424200357,1780650640000,-500.0,0.00013698,2]
[424200353,1780650640000,-500.0,0.00013698,2]
[424200356,1780650640000,-500.0,0.00013698,2]
[424200355,1780650640000,-500.0,0.00013698,2]
[424200360,1780650640000,-500.0,0.00013698,2]
[424200359,1780650640000,-500.0,0.00013698,2]
[424200361,1780650640000,-500.0,0.00013698,2]
[424200362,1780650640000,-500.0,0.00013698,2]
[424200368,1780650640000,-500.0,0.00013698,2]
[424200370,1780650640000,-540.02127567,0.00013698,2]
[424200367,1780650640000,-500.0,0.00013698,2]
[424200369,1780650640000,-500.0,0.00013698,2]
[424200365,1780650640000,-500.0,0.00013698,2]
[424200366,1780650640000,-500.0,0.00013698,2]
[424200364,1780650640000,-500.0,0.00013698,2]
[424200371,1780650640000,-500.0,0.00013698,2]
[424200372,1780650640000,-173.2792133,0.00013698,2]
[424200373,1780650640000,-500.0,0.00013698,2]
[424200374,1780650640000,-500.0,0.00013698,2]
[424200375,1780650640000,-500.0,0.00013698,2]
[424200323,1780650640000,-500.0,0.00013698,2]
[424200354,1780650640000,-500.0,0.00013698,2]
[424200351,1780650640000,-500.0,0.00013698,2]
[424200363,1780650640000,-500.0,0.00013698,2]
[424200349,1780650640000,-500.0,0.00013698,2]
[424200325,1780650640000,-500.0,0.00013698,2]
[424200352,1780650640000,-500.0,0.00013698,2]
[424200333,1780650640000,-500.0,0.00013698,2]
[424200326,1780650640000,-500.0,0.00013698,2]
[424200331,1780650640000,-437.35290326,0.00013698,2]
[424200330,1780650640000,-500.0,0.00013698,2]
[424200332,1780650640000,-500.0,0.00013698,2]
[424200329,1780650640000,-500.0,0.00013698,2]
[424200327,1780650640000,-500.0,0.00013698,2]
[424200335,1780650640000,-500.0,0.00013698,2]
[424200345,1780650640000,-500.0,0.00013698,2]
[424200344,1780650640000,-500.0,0.00013698,2]
[424200328,1780650640000,-500.0,0.00013698,2]
[424200334,1780650640000,-300.0,0.00013698,2]
[424200336,1780650640000,-500.0,0.00013698,2]
[424200339,1780650640000,-500.0,0.00013698,2]
[424200337,1780650640000,-500.0,0.00013698,2]
[424200341,1780650640000,-500.0,0.00013698,2]
[424200338,1780650640000,-500.0,0.00013698,2]
[424200342,1780650640000,-500.0,0.00013698,2]
[424200350,1780650640000,-500.0,0.00013698,2]
[424200340,1780650640000,-500.0,0.00013698,2]
[424200346,1780650640000,-500.0,0.00013698,2]
[424200343,1780650640000,-500.0,0.00013698,2]
[424200348,1780650640000,-500.0,0.00013698,2]
[424200415,1780650641000,-500.0,0.00013698,2]
[424200417,1780650641000,-500.0,0.00013698,2]
[424200411,1780650641000,-500.0,0.00013698,2]
[424200416,1780650641000,-500.0,0.00013698,2]
[424200419,1780650641000,-500.0,0.00013698,2]